[Event "FIDE World Rapid Chess Championship 2021"]
[White "Karjakin, Sergey"]
[Black "Janik, Igor"]
[WhiteFideId "14109603"]
[BlackFideId "1159259"]
[WhiteElo "2757"]
[BlackElo "2462"]
[Result "1-0"]
[Round "05"]
[TimeControl "900+10"]
[Date "2021.12.26"]
[WhiteClock "0:00:00"]
[BlackClock "0:15:10"]

1. d4 {[%clk 0:00:00]}  Nf6 {[%clk 0:15:10]} 2. Bg5 {[%clk 0:00:00]}  d5 {[%clk 0:15:10]} 3. Nd2 {[%clk 0:00:00]}  e6 {[%clk 0:15:10]} 4. e3 {[%clk 0:00:00]}  Be7 {[%clk 0:15:10]} 5. Bd3 {[%clk 0:00:00]}  b6 {[%clk 0:15:10]} 6. c3 {[%clk 0:00:00]}  c5 {[%clk 0:15:10]} 7. Ngf3 {[%clk 0:00:00]}  O-O {[%clk 0:15:10]} 8. Ne5 {[%clk 0:00:00]}  Bb7 {[%clk 0:15:10]} 9. Bxf6 {[%clk 0:00:00]}  Bxf6 {[%clk 0:15:10]} 10. f4 {[%clk 0:00:00]}  Ba6 {[%clk 0:15:10]} 11. Bc2 {[%clk 0:00:00]}  Bxe5 {[%clk 0:15:10]} 12. dxe5 {[%clk 0:00:00]}  Qh4+ {[%clk 0:15:10]} 13. g3 {[%clk 0:00:00]}  Qh3 {[%clk 0:15:10]} 14. Qf3 {[%clk 0:00:00]}  Nc6 {[%clk 0:15:10]} 15. O-O-O {[%clk 0:00:00]}  f6 {[%clk 0:15:10]} 16. e4 {[%clk 0:00:00]}  Rad8 {[%clk 0:15:10]} 17. exd5 {[%clk 0:00:00]}  exd5 {[%clk 0:15:10]} 18. exf6 {[%clk 0:00:00]}  Rxf6 {[%clk 0:15:10]} 19. Qf2 {[%clk 0:00:00]}  Ne5 {[%clk 0:15:10]} 20. Ne4 {[%clk 0:00:00]}  Rff8 {[%clk 0:15:10]} 21. Ng5 {[%clk 0:00:00]}  Qh6 {[%clk 0:15:10]} 22. Nxh7 {[%clk 0:00:00]}  Rfe8 {[%clk 0:15:10]} 23. Rhe1 {[%clk 0:00:00]}  d4 {[%clk 0:15:10]} 24. cxd4 {[%clk 0:00:00]}  cxd4 {[%clk 0:15:10]} 25. Ng5 {[%clk 0:00:00]}  d3 {[%clk 0:15:10]} 26. Bb3+ {[%clk 0:00:00]}  Bc4 {[%clk 0:15:10]} 27. Rxe5 {[%clk 0:00:00]}  Bxb3 {[%clk 0:15:10]} 28. Rxe8+ {[%clk 0:00:00]}  Rxe8 {[%clk 0:15:10]} 29. axb3 {[%clk 0:00:00]} 1-0


[Site "http://www.Chess.com"]

[Event "FIDE World Rapid Chess Championship 2021"]
[White "Tang, Andrew"]
[Black "Mamedov, Rauf"]
[WhiteFideId "2059630"]
[BlackFideId "13401653"]
[WhiteElo "2427"]
[BlackElo "2690"]
[Result "0-1"]
[Round "05"]
[TimeControl "900+10"]
[Date "2021.12.26"]
[WhiteClock "0:00:28"]
[BlackClock "0:00:55"]

1. d4 {[%clk 0:00:32]}  d6 {[%clk 0:02:03]} 2. c4 {[%clk 0:00:32]}  e5 {[%clk 0:02:03]} 3. Nf3 {[%clk 0:00:32]}  exd4 {[%clk 0:02:03]} 4. Nxd4 {[%clk 0:00:32]}  Nf6 {[%clk 0:02:03]} 5. Nc3 {[%clk 0:00:32]}  g6 {[%clk 0:02:03]} 6. g3 {[%clk 0:00:32]}  Bg7 {[%clk 0:02:03]} 7. Bg2 {[%clk 0:00:32]}  O-O {[%clk 0:02:03]} 8. O-O {[%clk 0:00:32]}  Nbd7 {[%clk 0:02:03]} 9. b3 {[%clk 0:00:32]}  a6 {[%clk 0:02:03]} 10. Bb2 {[%clk 0:00:32]}  Re8 {[%clk 0:02:03]} 11. Qc2 {[%clk 0:00:32]}  Rb8 {[%clk 0:02:03]} 12. Rad1 {[%clk 0:00:32]}  Qe7 {[%clk 0:02:03]} 13. Nd5 {[%clk 0:00:32]}  Qd8 {[%clk 0:02:03]} 14. Rfe1 {[%clk 0:00:32]}  c5 {[%clk 0:02:03]} 15. Nf3 {[%clk 0:00:32]}  Nxd5 {[%clk 0:02:03]} 16. Rxd5 {[%clk 0:00:32]}  Nf6 {[%clk 0:02:03]} 17. Rdd1 {[%clk 0:00:32]}  Bf5 {[%clk 0:02:03]} 18. Qc1 {[%clk 0:00:32]}  b5 {[%clk 0:02:03]} 19. Nd2 {[%clk 0:00:32]}  Qa5 {[%clk 0:02:03]} 20. Qa1 {[%clk 0:00:32]}  Nh5 {[%clk 0:02:03]} 21. Bxg7 {[%clk 0:00:32]}  Nxg7 {[%clk 0:02:03]} 22. cxb5 {[%clk 0:00:32]}  axb5 {[%clk 0:02:03]} 23. Nf1 {[%clk 0:00:32]}  c4 {[%clk 0:02:03]} 24. bxc4 {[%clk 0:00:32]}  bxc4 {[%clk 0:02:03]} 25. Ne3 {[%clk 0:00:32]}  Rxe3 {[%clk 0:02:03]} 26. fxe3 {[%clk 0:00:32]}  c3 {[%clk 0:02:03]} 27. e4 {[%clk 0:00:32]}  Bd7 {[%clk 0:02:03]} 28. Rd3 {[%clk 0:00:32]}  c2 {[%clk 0:02:03]} 29. Rc1 {[%clk 0:00:32]}  Ba4 {[%clk 0:02:03]} 30. Kf2 {[%clk 0:00:32]}  Ne6 {[%clk 0:02:03]} 31. e3 {[%clk 0:00:32]}  Qb4 {[%clk 0:02:03]} 32. Rc3 {[%clk 0:00:32]}  Qb1 {[%clk 0:02:03]} 33. Rc8+ {[%clk 0:00:32]}  Nf8 {[%clk 0:02:03]} 34. Rxb8 {[%clk 0:00:32]}  Qxb8 {[%clk 0:02:03]} 35. e5 {[%clk 0:00:32]}  dxe5 {[%clk 0:02:03]} 36. Qc3 {[%clk 0:00:32]}  Qb1 {[%clk 0:02:03]} 37. Qa3 {[%clk 0:00:32]}  Qb5 {[%clk 0:02:03]} 38. Be4 {[%clk 0:00:32]}  Qd7 {[%clk 0:02:03]} 39. Qc3 {[%clk 0:00:32]}  Qd1 {[%clk 0:02:03]} 40. Qe1 {[%clk 0:00:32]}  Qd7 {[%clk 0:02:03]} 41. Qe2 {[%clk 0:00:32]}  Qd1 {[%clk 0:02:03]} 42. Qe1 {[%clk 0:00:32]}  Qd7 {[%clk 0:02:03]} 43. Kg1 {[%clk 0:00:32]}  Qd1 {[%clk 0:02:03]} 44. Kf1 {[%clk 0:00:32]}  Ne6 {[%clk 0:02:03]} 45. Bxc2 {[%clk 0:00:32]}  Qf3+ {[%clk 0:02:03]} 46. Qf2 {[%clk 0:00:32]}  Qh1+ {[%clk 0:02:03]} 47. Qg1 {[%clk 0:00:32]}  Qf3+ {[%clk 0:02:03]} 48. Qf2 {[%clk 0:00:32]}  Qh1+ {[%clk 0:02:03]} 49. Qg1 {[%clk 0:00:32]}  Bb5+ {[%clk 0:02:03]} 50. Kf2 {[%clk 0:00:32]}  Qa8 {[%clk 0:02:03]} 51. Bb3 {[%clk 0:00:32]}  Ng5 {[%clk 0:02:03]} 52. Qg2 {[%clk 0:00:32]}  Qd8 {[%clk 0:02:03]} 53. Bd5 {[%clk 0:00:32]}  e4 {[%clk 0:02:03]} 54. Rd1 {[%clk 0:00:32]}  Bd3 {[%clk 0:02:03]} 55. Bb3 {[%clk 0:00:32]}  Qf6+ {[%clk 0:02:03]} 56. Kg1 {[%clk 0:00:32]}  Qb6 {[%clk 0:02:03]} 57. Kf2 {[%clk 0:00:32]}  Qc5 {[%clk 0:02:03]} 58. h4 {[%clk 0:00:32]}  Qf5+ {[%clk 0:02:03]} 59. Kg1 {[%clk 0:00:32]}  Nh3+ {[%clk 0:02:03]} 60. Kh2 {[%clk 0:00:28]}  Nf2 {[%clk 0:00:55]} 61. Re1 {[%clk 0:00:28]}  Ng4+ {[%clk 0:00:55]} 62. Kg1 {[%clk 0:00:28]}  h5 {[%clk 0:00:55]} 63. Bd1 {[%clk 0:00:28]}  Qa5 {[%clk 0:00:55]} 64. Re2 {[%clk 0:00:28]}  Bxe2 {[%clk 0:00:55]} 65. Qxe2 {[%clk 0:00:28]}  Qc3 {[%clk 0:00:55]} 66. Bc2 {[%clk 0:00:28]}  Qa1+ {[%clk 0:00:55]} 67. Qd1 {[%clk 0:00:28]}  Qxa2 {[%clk 0:00:55]} 0-1


[Site "http://www.Chess.com"]

[Event "FIDE World Rapid Chess Championship 2021"]
[White "Ponkratov, Pavel"]
[Black "Baum, Jonasz"]
[WhiteFideId "4157800"]
[BlackFideId "1195360"]
[WhiteElo "2614"]
[BlackElo "2343"]
[Result "1-0"]
[Round "05"]
[TimeControl "900+10"]
[Date "2021.12.26"]
[WhiteClock "0:09:50"]
[BlackClock "0:00:10"]

1. e4 {[%clk 0:09:50]}  c5 {[%clk 0:00:10]} 2. Nf3 {[%clk 0:09:50]}  d6 {[%clk 0:00:10]} 3. d4 {[%clk 0:09:50]}  cxd4 {[%clk 0:00:10]} 4. Nxd4 {[%clk 0:09:50]}  Nf6 {[%clk 0:00:10]} 5. Nc3 {[%clk 0:09:50]}  a6 {[%clk 0:00:10]} 6. Be3 {[%clk 0:09:50]}  e5 {[%clk 0:00:10]} 7. Nf3 {[%clk 0:09:50]}  Be7 {[%clk 0:00:10]} 8. Bc4 {[%clk 0:09:50]}  O-O {[%clk 0:00:10]} 9. O-O {[%clk 0:09:50]}  Be6 {[%clk 0:00:10]} 10. Bb3 {[%clk 0:09:50]}  Nc6 {[%clk 0:00:10]} 11. Qd3 {[%clk 0:09:50]}  Rc8 {[%clk 0:00:10]} 12. Rad1 {[%clk 0:09:50]}  Na5 {[%clk 0:00:10]} 13. Bg5 {[%clk 0:09:50]}  Nc4 {[%clk 0:00:10]} 14. Bc1 {[%clk 0:09:50]}  b5 {[%clk 0:00:10]} 15. Ng5 {[%clk 0:09:50]}  Bg4 {[%clk 0:00:10]} 16. Nf3 {[%clk 0:09:50]}  Qb6 {[%clk 0:00:10]} 17. a4 {[%clk 0:09:50]}  Rfd8 {[%clk 0:00:10]} 18. axb5 {[%clk 0:09:50]}  axb5 {[%clk 0:00:10]} 19. h3 {[%clk 0:09:50]}  Bh5 {[%clk 0:00:10]} 20. g4 {[%clk 0:09:50]}  Bg6 {[%clk 0:00:10]} 21. Qe2 {[%clk 0:09:50]}  h6 {[%clk 0:00:10]} 22. Nh4 {[%clk 0:09:50]}  Bh7 {[%clk 0:00:10]} 23. Nf5 {[%clk 0:09:50]}  Bf8 {[%clk 0:00:10]} 24. Kh2 {[%clk 0:09:50]}  Qc6 {[%clk 0:00:10]} 25. Nd5 {[%clk 0:09:50]}  Nxd5 {[%clk 0:00:10]} 26. Rxd5 {[%clk 0:09:50]}  Na5 {[%clk 0:00:10]} 27. Be3 {[%clk 0:09:50]}  Nxb3 {[%clk 0:00:10]} 28. cxb3 {[%clk 0:09:50]}  Qc2 {[%clk 0:00:10]} 29. Qxc2 {[%clk 0:09:50]}  Rxc2 {[%clk 0:00:10]} 30. Rxb5 {[%clk 0:09:50]}  Rxb2 {[%clk 0:00:10]} 31. Rd1 {[%clk 0:09:50]}  Rc8 {[%clk 0:00:10]} 32. Rd3 {[%clk 0:09:50]}  Re2 {[%clk 0:00:10]} 33. Kg2 {[%clk 0:09:50]}  g6 {[%clk 0:00:10]} 34. Nxd6 {[%clk 0:09:50]}  Rd8 {[%clk 0:00:10]} 35. Rbd5 {[%clk 0:09:50]}  Bxd6 {[%clk 0:00:10]} 36. Rxd6 {[%clk 0:09:50]}  Rxd6 {[%clk 0:00:10]} 37. Rxd6 {[%clk 0:09:50]}  g5 {[%clk 0:00:10]} 38. Kf3 {[%clk 0:09:50]}  Rb2 {[%clk 0:00:10]} 39. Rb6 {[%clk 0:09:50]}  Bg6 {[%clk 0:00:10]} 40. Bc5 {[%clk 0:09:50]}  Rc2 {[%clk 0:00:10]} 41. Bb4 {[%clk 0:09:50]}  Kg7 {[%clk 0:00:10]} 42. Ke3 {[%clk 0:09:50]}  Rc1 {[%clk 0:00:10]} 43. f3 {[%clk 0:09:50]}  Rc8 {[%clk 0:00:10]} 44. Be7 {[%clk 0:09:50]}  Rc3+ {[%clk 0:00:10]} 45. Ke2 {[%clk 0:09:50]}  Rc2+ {[%clk 0:00:10]} 46. Kd3 {[%clk 0:09:50]}  Rf2 {[%clk 0:00:10]} 47. Ke3 {[%clk 0:09:50]}  Rh2 {[%clk 0:00:10]} 48. Bf6+ {[%clk 0:09:50]}  Kh7 {[%clk 0:00:10]} 49. Rb8 {[%clk 0:09:50]} 1-0


[Site "http://www.Chess.com"]

[Event "FIDE World Rapid Chess Championship 2021"]
[White "Kozak, Adam"]
[Black "Sadzikowski, Daniel"]
[WhiteFideId "753246"]
[BlackFideId "1132253"]
[WhiteElo "2552"]
[BlackElo "2414"]
[Result "1-0"]
[Round "05"]
[TimeControl "900+10"]
[Date "2021.12.26"]
[WhiteClock "0:04:06"]
[BlackClock "0:01:45"]

1. e4 {[%clk 0:04:06]}  c5 {[%clk 0:01:45]} 2. Nf3 {[%clk 0:04:06]}  d6 {[%clk 0:01:45]} 3. Bb5+ {[%clk 0:04:06]}  Nd7 {[%clk 0:01:45]} 4. a4 {[%clk 0:04:06]}  Nf6 {[%clk 0:01:45]} 5. Nc3 {[%clk 0:04:06]}  g6 {[%clk 0:01:45]} 6. O-O {[%clk 0:04:06]}  Bg7 {[%clk 0:01:45]} 7. a5 {[%clk 0:04:06]}  a6 {[%clk 0:01:45]} 8. Be2 {[%clk 0:04:06]}  O-O {[%clk 0:01:45]} 9. d3 {[%clk 0:04:06]}  b5 {[%clk 0:01:45]} 10. axb6 {[%clk 0:04:06]}  Bb7 {[%clk 0:01:45]} 11. h3 {[%clk 0:04:06]}  Nxb6 {[%clk 0:01:45]} 12. Be3 {[%clk 0:04:06]}  e5 {[%clk 0:01:45]} 13. Nd2 {[%clk 0:04:06]}  Ne8 {[%clk 0:01:45]} 14. f4 {[%clk 0:04:06]}  exf4 {[%clk 0:01:45]} 15. Bxf4 {[%clk 0:04:06]}  Nc7 {[%clk 0:01:45]} 16. Be3 {[%clk 0:04:06]}  Nb5 {[%clk 0:01:45]} 17. Nxb5 {[%clk 0:04:06]}  axb5 {[%clk 0:01:45]} 18. Rxa8 {[%clk 0:04:06]}  Qxa8 {[%clk 0:01:45]} 19. b4 {[%clk 0:04:06]}  Na4 {[%clk 0:01:45]} 20. bxc5 {[%clk 0:04:06]}  dxc5 {[%clk 0:01:45]} 21. Qe1 {[%clk 0:04:06]}  f5 {[%clk 0:01:45]} 22. Bf3 {[%clk 0:04:06]}  f4 {[%clk 0:01:45]} 23. Bf2 {[%clk 0:04:06]}  Bc3 {[%clk 0:01:45]} 24. Qe2 {[%clk 0:04:06]}  Be5 {[%clk 0:01:45]} 25. Nb3 {[%clk 0:04:06]}  c4 {[%clk 0:01:45]} 26. Nd4 {[%clk 0:04:06]}  cxd3 {[%clk 0:01:45]} 27. Qxd3 {[%clk 0:04:06]}  Ba6 {[%clk 0:01:45]} 28. Qb3+ {[%clk 0:04:06]}  Kh8 {[%clk 0:01:45]} 29. Ne6 {[%clk 0:04:06]}  Rc8 {[%clk 0:01:45]} 30. Ng5 {[%clk 0:04:06]}  Bc3 {[%clk 0:01:45]} 31. e5 {[%clk 0:04:06]}  Qb8 {[%clk 0:01:45]} 32. Nf7+ {[%clk 0:04:06]}  Kg7 {[%clk 0:01:45]} 33. Qe6 {[%clk 0:04:06]} 1-0


[Site "http://www.Chess.com"]

[Event "FIDE World Rapid Chess Championship 2021"]
[White "Cuenca Jimenez, Jose Fernando"]
[Black "Dvirnyy, Danyyil"]
[WhiteFideId "2255570"]
[BlackFideId "817570"]
[WhiteElo "2421"]
[BlackElo "2550"]
[Result "1/2-1/2"]
[Round "05"]
[TimeControl "900+10"]
[Date "2021.12.26"]
[WhiteClock "0:00:16"]
[BlackClock "0:01:05"]

1. d4 {[%clk 0:00:16]}  Nf6 {[%clk 0:01:05]} 2. c4 {[%clk 0:00:16]}  e6 {[%clk 0:01:05]} 3. Nf3 {[%clk 0:00:16]}  d5 {[%clk 0:01:05]} 4. Nc3 {[%clk 0:00:16]}  Be7 {[%clk 0:01:05]} 5. Bf4 {[%clk 0:00:16]}  O-O {[%clk 0:01:05]} 6. e3 {[%clk 0:00:16]}  Nbd7 {[%clk 0:01:05]} 7. c5 {[%clk 0:00:16]}  c6 {[%clk 0:01:05]} 8. b4 {[%clk 0:00:16]}  b6 {[%clk 0:01:05]} 9. h4 {[%clk 0:00:16]}  a5 {[%clk 0:01:05]} 10. a3 {[%clk 0:00:16]}  Ne4 {[%clk 0:01:05]} 11. Nxe4 {[%clk 0:00:16]}  dxe4 {[%clk 0:01:05]} 12. Ne5 {[%clk 0:00:16]}  Nxe5 {[%clk 0:01:05]} 13. Bxe5 {[%clk 0:00:16]}  Qd5 {[%clk 0:01:05]} 14. Be2 {[%clk 0:00:16]}  Ba6 {[%clk 0:01:05]} 15. Bxa6 {[%clk 0:00:16]}  Rxa6 {[%clk 0:01:05]} 16. O-O {[%clk 0:00:16]}  Rfa8 {[%clk 0:01:05]} 17. cxb6 {[%clk 0:00:16]}  Rxb6 {[%clk 0:01:05]} 18. Bc7 {[%clk 0:00:16]}  Rba6 {[%clk 0:01:05]} 19. bxa5 {[%clk 0:00:16]}  Bd8 {[%clk 0:01:05]} 20. Bxd8 {[%clk 0:00:16]}  Qxd8 {[%clk 0:01:05]} 21. Qg4 {[%clk 0:00:16]}  Qd5 {[%clk 0:01:05]} 22. Rfc1 {[%clk 0:00:16]}  Rxa5 {[%clk 0:01:05]} 23. Rc3 {[%clk 0:00:16]}  h5 {[%clk 0:01:05]} 24. Qf4 {[%clk 0:00:16]}  c5 {[%clk 0:01:05]} 25. dxc5 {[%clk 0:00:16]}  Rxc5 {[%clk 0:01:05]} 26. Rac1 {[%clk 0:00:16]}  Rxc3 {[%clk 0:01:05]} 27. Rxc3 {[%clk 0:00:16]}  e5 {[%clk 0:01:05]} 28. Qf5 {[%clk 0:00:16]}  g6 {[%clk 0:01:05]} 29. Qf6 {[%clk 0:00:16]}  Qa5 {[%clk 0:01:05]} 30. Rb3 {[%clk 0:00:16]}  Qd5 {[%clk 0:01:05]} 31. Rb4 {[%clk 0:00:16]}  Rc8 {[%clk 0:01:05]} 32. Kh2 {[%clk 0:00:16]}  Ra8 {[%clk 0:01:05]} 33. a4 {[%clk 0:00:16]}  Rc8 {[%clk 0:01:05]} 34. Rb6 {[%clk 0:00:16]}  Qa2 {[%clk 0:01:05]} 35. Ra6 {[%clk 0:00:16]}  Qd5 {[%clk 0:01:05]} 36. a5 {[%clk 0:00:16]}  Qd8 {[%clk 0:01:05]} 37. Qxd8+ {[%clk 0:00:16]}  Rxd8 {[%clk 0:01:05]} 38. Rb6 {[%clk 0:00:16]}  Rd2 {[%clk 0:01:05]} 39. a6 {[%clk 0:00:16]}  Ra2 {[%clk 0:01:05]} 40. Kg3 {[%clk 0:00:16]}  Kg7 {[%clk 0:01:05]} 41. f3 {[%clk 0:00:16]}  Ra3 {[%clk 0:01:05]} 42. Kf2 {[%clk 0:00:16]}  Ra2+ {[%clk 0:01:05]} 43. Kg3 {[%clk 0:00:16]}  Ra3 {[%clk 0:01:05]} 44. Kf2 {[%clk 0:00:16]}  Ra2+ {[%clk 0:01:05]} 45. Kg3 {[%clk 0:00:16]} 1/2-1/2


[Site "http://www.Chess.com"]

[Event "FIDE World Rapid Chess Championship 2021"]
[White "Saraci, Nderim"]
[Black "Donchenko, Alexander"]
[WhiteFideId "6351921"]
[BlackFideId "24603295"]
[WhiteElo "2414"]
[BlackElo "2535"]
[Result "0-1"]
[Round "05"]
[TimeControl "900+10"]
[Date "2021.12.26"]
[WhiteClock "0:00:00"]
[BlackClock "0:08:36"]

1. Nf3 {[%clk 0:00:00]}  Nf6 {[%clk 0:08:36]} 2. g3 {[%clk 0:00:00]}  b6 {[%clk 0:08:36]} 3. Bg2 {[%clk 0:00:00]}  Bb7 {[%clk 0:08:36]} 4. c4 {[%clk 0:00:00]}  g6 {[%clk 0:08:36]} 5. b3 {[%clk 0:00:00]}  Bg7 {[%clk 0:08:36]} 6. Bb2 {[%clk 0:00:00]}  O-O {[%clk 0:08:36]} 7. O-O {[%clk 0:00:00]}  d6 {[%clk 0:08:36]} 8. d4 {[%clk 0:00:00]}  c5 {[%clk 0:08:36]} 9. Nc3 {[%clk 0:00:00]}  cxd4 {[%clk 0:08:36]} 10. Qxd4 {[%clk 0:00:00]}  Ne4 {[%clk 0:08:36]} 11. Qe3 {[%clk 0:00:00]}  Nxc3 {[%clk 0:08:36]} 12. Bxc3 {[%clk 0:00:00]}  Bxc3 {[%clk 0:08:36]} 13. Qxc3 {[%clk 0:00:00]}  Nd7 {[%clk 0:08:36]} 14. Rfd1 {[%clk 0:00:00]}  Qc7 {[%clk 0:08:36]} 15. Rac1 {[%clk 0:00:00]}  Rac8 {[%clk 0:08:36]} 16. Qe3 {[%clk 0:00:00]}  Nf6 {[%clk 0:08:36]} 17. h3 {[%clk 0:00:00]}  Rfe8 {[%clk 0:08:36]} 18. Qh6 {[%clk 0:00:00]}  Bxf3 {[%clk 0:08:36]} 19. Bxf3 {[%clk 0:00:00]}  Qc5 {[%clk 0:08:36]} 20. h4 {[%clk 0:00:00]}  Qe5 {[%clk 0:08:36]} 21. Kg2 {[%clk 0:00:00]}  Rc5 {[%clk 0:08:36]} 22. Rd3 {[%clk 0:00:00]}  Qb2 {[%clk 0:08:36]} 23. Rh1 {[%clk 0:00:00]}  Re5 {[%clk 0:08:36]} 24. Rd2 {[%clk 0:00:00]}  Qa3 {[%clk 0:08:36]} 25. g4 {[%clk 0:00:00]}  Qa5 {[%clk 0:08:36]} 26. Qf4 {[%clk 0:00:00]}  h5 {[%clk 0:08:36]} 27. gxh5 {[%clk 0:00:00]}  Nxh5 {[%clk 0:08:36]} 28. Bxh5 {[%clk 0:00:00]}  Rxh5 {[%clk 0:08:36]} 29. Rhd1 {[%clk 0:00:00]}  Rc8 {[%clk 0:08:36]} 30. Qe4 {[%clk 0:00:00]}  Re5 {[%clk 0:08:36]} 31. Qg4 {[%clk 0:00:00]}  Rcc5 {[%clk 0:08:36]} 32. a4 {[%clk 0:00:00]}  Rh5 {[%clk 0:08:36]} 33. Kf1 {[%clk 0:00:00]}  Rce5 {[%clk 0:08:36]} 34. Rd3 {[%clk 0:00:00]}  Qc5 {[%clk 0:08:36]} 35. Rf3 {[%clk 0:00:00]}  Qc6 {[%clk 0:08:36]} 36. Rd4 {[%clk 0:00:00]}  Ref5 {[%clk 0:08:36]} 37. Rdd3 {[%clk 0:00:00]}  a6 {[%clk 0:08:36]} 38. Rde3 {[%clk 0:00:00]}  Kf8 {[%clk 0:08:36]} 39. Rc3 {[%clk 0:00:00]}  Re5 {[%clk 0:08:36]} 40. Qf4 {[%clk 0:00:00]}  Rhf5 {[%clk 0:08:36]} 41. Qd4 {[%clk 0:00:00]}  Kg8 {[%clk 0:08:36]} 42. Qg4 {[%clk 0:00:00]}  Re4 {[%clk 0:08:36]} 43. Qg3 {[%clk 0:00:00]}  Rh5 {[%clk 0:08:36]} 44. e3 {[%clk 0:00:00]}  Rexh4 {[%clk 0:08:36]} 45. Ke2 {[%clk 0:00:00]}  b5 {[%clk 0:08:36]} 46. Rf4 {[%clk 0:00:00]}  Rxf4 {[%clk 0:08:36]} 47. Qxf4 {[%clk 0:00:00]}  bxa4 {[%clk 0:08:36]} 48. b4 {[%clk 0:00:00]}  Qb6 {[%clk 0:08:36]} 49. c5 {[%clk 0:00:00]}  dxc5 {[%clk 0:08:36]} 50. bxc5 {[%clk 0:00:00]} 0-1


[Site "http://www.Chess.com"]

[Event "FIDE World Rapid Chess Championship 2021"]
[White "Thybo, Jesper Sondergaard"]
[Black "Klekowski, Maciej"]
[WhiteFideId "1438832"]
[BlackFideId "1132717"]
[WhiteElo "2401"]
[BlackElo "2528"]
[Result "1/2-1/2"]
[Round "05"]
[TimeControl "900+10"]
[Date "2021.12.26"]
[WhiteClock "0:00:30"]
[BlackClock "0:00:56"]

1. d4 {[%clk 0:00:30]}  Nf6 {[%clk 0:00:56]} 2. c4 {[%clk 0:00:30]}  e6 {[%clk 0:00:56]} 3. Nf3 {[%clk 0:00:30]}  b6 {[%clk 0:00:56]} 4. g3 {[%clk 0:00:30]}  Bb7 {[%clk 0:00:56]} 5. Bg2 {[%clk 0:00:30]}  Be7 {[%clk 0:00:56]} 6. Nc3 {[%clk 0:00:30]}  Ne4 {[%clk 0:00:56]} 7. Bd2 {[%clk 0:00:30]}  Nxc3 {[%clk 0:00:56]} 8. Bxc3 {[%clk 0:00:30]}  d5 {[%clk 0:00:56]} 9. cxd5 {[%clk 0:00:30]}  exd5 {[%clk 0:00:56]} 10. b4 {[%clk 0:00:30]}  O-O {[%clk 0:00:56]} 11. O-O {[%clk 0:00:30]}  Nd7 {[%clk 0:00:56]} 12. Qb3 {[%clk 0:00:30]}  Nf6 {[%clk 0:00:56]} 13. Ne5 {[%clk 0:00:30]}  Ne4 {[%clk 0:00:56]} 14. b5 {[%clk 0:00:30]}  a5 {[%clk 0:00:56]} 15. a4 {[%clk 0:00:30]}  Bf6 {[%clk 0:00:56]} 16. Rfd1 {[%clk 0:00:30]}  Qe7 {[%clk 0:00:56]} 17. Bb2 {[%clk 0:00:30]}  Rfe8 {[%clk 0:00:56]} 18. Rac1 {[%clk 0:00:30]}  Bxe5 {[%clk 0:00:56]} 19. dxe5 {[%clk 0:00:30]}  Rad8 {[%clk 0:00:56]} 20. Qc2 {[%clk 0:00:30]}  Nc5 {[%clk 0:00:56]} 21. Ba3 {[%clk 0:00:30]}  Qxe5 {[%clk 0:00:56]} 22. Bxc5 {[%clk 0:00:30]}  bxc5 {[%clk 0:00:56]} 23. Qxc5 {[%clk 0:00:30]}  Rd7 {[%clk 0:00:56]} 24. e3 {[%clk 0:00:30]}  h5 {[%clk 0:00:56]} 25. Rd4 {[%clk 0:00:30]}  Qe6 {[%clk 0:00:56]} 26. h4 {[%clk 0:00:30]}  g6 {[%clk 0:00:56]} 27. Kh2 {[%clk 0:00:30]}  Red8 {[%clk 0:00:56]} 28. Bh3 {[%clk 0:00:30]}  f5 {[%clk 0:00:56]} 29. Bg2 {[%clk 0:00:30]}  Kh7 {[%clk 0:00:56]} 30. Rd2 {[%clk 0:00:30]}  Qb6 {[%clk 0:00:56]} 31. Qa3 {[%clk 0:00:30]}  c6 {[%clk 0:00:56]} 32. bxc6 {[%clk 0:00:30]}  Bxc6 {[%clk 0:00:56]} 33. Rb2 {[%clk 0:00:30]}  Qa6 {[%clk 0:00:56]} 34. Qc5 {[%clk 0:00:30]}  Bxa4 {[%clk 0:00:56]} 35. Rb6 {[%clk 0:00:30]}  Qa7 {[%clk 0:00:56]} 36. Qd4 {[%clk 0:00:30]}  Rf7 {[%clk 0:00:56]} 37. Bxd5 {[%clk 0:00:30]}  Bb3 {[%clk 0:00:56]} 38. Rxb3 {[%clk 0:00:30]}  Qxd4 {[%clk 0:00:56]} 39. exd4 {[%clk 0:00:30]}  Rxd5 {[%clk 0:00:56]} 40. Rc5 {[%clk 0:00:30]}  Rfd7 {[%clk 0:00:56]} 41. Rbb5 {[%clk 0:00:30]}  Rxd4 {[%clk 0:00:56]} 42. Rxa5 {[%clk 0:00:30]} 1/2-1/2


[Site "http://www.Chess.com"]

[Event "FIDE World Rapid Chess Championship 2021"]
[White "Moroni, Luca Jr"]
[Black "Sankalp, Gupta"]
[WhiteFideId "865834"]
[BlackFideId "5097010"]
[WhiteElo "2519"]
[BlackElo "2266"]
[Result "1-0"]
[Round "05"]
[TimeControl "900+10"]
[Date "2021.12.26"]
[WhiteClock "0:02:13"]
[BlackClock "0:07:40"]

1. d4 {[%clk 0:02:13]}  d5 {[%clk 0:07:40]} 2. Bf4 {[%clk 0:02:13]}  Nf6 {[%clk 0:07:40]} 3. e3 {[%clk 0:02:13]}  c5 {[%clk 0:07:40]} 4. dxc5 {[%clk 0:02:13]}  Nc6 {[%clk 0:07:40]} 5. Bb5 {[%clk 0:02:13]}  g6 {[%clk 0:07:40]} 6. c3 {[%clk 0:02:13]}  Bg7 {[%clk 0:07:40]} 7. Be5 {[%clk 0:02:13]}  O-O {[%clk 0:07:40]} 8. Bxc6 {[%clk 0:02:13]}  bxc6 {[%clk 0:07:40]} 9. Ne2 {[%clk 0:02:13]}  Ba6 {[%clk 0:07:40]} 10. O-O {[%clk 0:02:13]}  Ne4 {[%clk 0:07:40]} 11. Bxg7 {[%clk 0:02:13]}  Kxg7 {[%clk 0:07:40]} 12. b4 {[%clk 0:02:13]}  e5 {[%clk 0:07:40]} 13. Nd2 {[%clk 0:02:13]}  Bxe2 {[%clk 0:07:40]} 14. Qxe2 {[%clk 0:02:13]}  Nxc3 {[%clk 0:07:40]} 15. Qd3 {[%clk 0:02:13]}  d4 {[%clk 0:07:40]} 16. Nf3 {[%clk 0:02:13]}  a5 {[%clk 0:07:40]} 17. Nxe5 {[%clk 0:02:13]}  Qd5 {[%clk 0:07:40]} 18. Nc4 {[%clk 0:02:13]}  Rad8 {[%clk 0:07:40]} 19. Nxa5 {[%clk 0:02:13]}  Nxa2 {[%clk 0:07:40]} 20. Nxc6 {[%clk 0:02:13]}  Qxc6 {[%clk 0:07:40]} 21. Rxa2 {[%clk 0:02:13]}  dxe3 {[%clk 0:07:40]} 22. Qxe3 {[%clk 0:02:13]}  Rfe8 {[%clk 0:07:40]} 23. Qc3+ {[%clk 0:02:13]}  Kg8 {[%clk 0:07:40]} 24. Rd2 {[%clk 0:02:13]}  Rb8 {[%clk 0:07:40]} 25. h3 {[%clk 0:02:13]}  Re4 {[%clk 0:07:40]} 26. Rd4 {[%clk 0:02:13]}  Qf6 {[%clk 0:07:40]} 27. Rfd1 {[%clk 0:02:13]}  Re2 {[%clk 0:07:40]} 28. Qf3 {[%clk 0:02:13]}  Qe6 {[%clk 0:07:40]} 29. Rd8+ {[%clk 0:02:13]}  Rxd8 {[%clk 0:07:40]} 30. Rxd8+ {[%clk 0:02:13]}  Kg7 {[%clk 0:07:40]} 31. Qc3+ {[%clk 0:02:13]}  Kh6 {[%clk 0:07:40]} 32. c6 {[%clk 0:02:13]}  Qf5 {[%clk 0:07:40]} 33. Qf3 {[%clk 0:02:13]}  Re1+ {[%clk 0:07:40]} 34. Kh2 {[%clk 0:02:13]}  Qe5+ {[%clk 0:07:40]} 35. Qg3 {[%clk 0:02:13]}  Qa1 {[%clk 0:07:40]} 36. Qf4+ {[%clk 0:02:13]}  g5 {[%clk 0:07:40]} 37. Rd6+ {[%clk 0:02:13]}  Re6 {[%clk 0:07:40]} 38. Rxe6+ {[%clk 0:02:13]}  fxe6 {[%clk 0:07:40]} 39. Qf8+ {[%clk 0:02:13]}  Kg6 {[%clk 0:07:40]} 40. Qg8+ {[%clk 0:02:13]}  Kf5 {[%clk 0:07:40]} 41. Qf7+ {[%clk 0:02:13]}  Ke4 {[%clk 0:07:40]} 42. Qxe6+ {[%clk 0:02:13]} 1-0


[Site "http://www.Chess.com"]